[Event "African Online-ch Women 2021"]
[Site "Online"]
[Date "2021.02.01"]
[Round "2.8"]
[White "Vilhete, Vania Fausto Da T."]
[Black "Botlhole, Kgalalelo"]
[Result "0-1"]
[ECO "D30"]
[WhiteElo "1799"]
[BlackElo "1705"]
[Annotator "NA"]
[PlyCount "124"]
[EventDate "2021.02.01"]
[EventType "swiss"]
[EventCountry "NET"]
[SourceTitle "playchess.com"]
[Source "ChessBase"]
[SourceQuality "1"]
[TimeControl "1500+10"]

1. d4 {[%emt 0:00:00]} d5 {[%emt 0:00:07]} 2. c4 {[%emt 0:00:05]} e6 {[%emt 0:00:03]} 3. Nf3 {[%emt 0:00:07]} Nf6 {[%emt 0:00:02]} 4. e3 {[%emt 0:00:05]} c6 {[%emt 0:00:06]} 5. Bd3 {[%emt 0:00:04]} dxc4 {[%emt 0:00:04]} 6. Bxc4 {[%emt 0:00:04]} b5 {[%emt 0:00:03]} 7. Bd3 {[%emt 0:00:06]} Bb7 {[%emt 0:00:11]} 8. O-O {[%emt 0:00:06]} Nbd7 {[%emt 0:00:04]} 9. Nbd2 {[%emt 0:00:06]} a6 {[%emt 0:00:09]} 10. b3 {[%emt 0:00:06]} Be7 {[%emt 0:00:03]} 11. Bb2 {[%emt 0:00:05]} O-O {[%emt 0:00:03]} 12. Rc1 {[%emt 0:00:59]} c5 {[%emt 0:00:04]} 13. Bb1 {[%emt 0:00:16]} Rc8 {[%emt 0:00:11]} 14. Qe2 {[%emt 0:00:36]} h6 {[%emt 0:00:26]} 15. Rfd1 {[%emt 0:00:25]} Qb6 {[%emt 0:00:12]} 16. Ne5 {[%emt 0:00:30]} Rfd8 {[%emt 0:01:24]} 17. Ndf3 {[%emt 0:00:09]} Nf8 {[%emt 0:00:32]} 18. h3 {[%emt 0:00:54]} Be4 {[%emt 0:01:08]} 19. dxc5 {[%emt 0:01:51]} Bxc5 {[%emt 0:01:14]} 20. Nd3 {[%emt 0:01:25]} Be7 {[%emt 0:01:08]} 21. Bd4 {[%emt 0:01:08]} Qb7 {[%emt 0:00:17]} 22. Nde5 {[%emt 0:00:22]} Bxb1 {[%emt 0:00:47]} 23. Rxb1 {[%emt 0:00:08]} Qe4 {[%emt 0:00:24]} 24. Rbc1 {[%emt 0:00:28]} Ba3 {[%emt 0:01:49]} 25. Bb2 {[%emt 0:05:41]} Rxd1+ {[%emt 0:01:39]} 26. Qxd1 {[%emt 0:00:29]} Rxc1 {[%emt 0:03:45]} 27. Qxc1 {[%emt 0:00:35]} Bxb2 {[%emt 0:00:21]} 28. Qxb2 {[%emt 0:00:05]} Nd5 {[%emt 0:00:05]} 29. Qc1 {[%emt 0:00:44]} f6 {[%emt 0:01:24]} 30. Nc6 {[%emt 0:00:28]} Kh7 {[%emt 0:00:27]} 31. Nfd4 {[%emt 0:00:33]} e5 {[%emt 0:00:58]} 32. Ne2 {[%emt 0:00:10]} Ne6 {[%emt 0:00:44]} 33. Ng3 {[%emt 0:00:22]} Qd3 {[%emt 0:00:24]} 34. Nb8 {[%emt 0:00:57]} Nc3 {[%emt 0:01:14]} 35. Nxa6 {[%emt 0:01:06]} Nxa2 {[%emt 0:00:38]} 36. Qb2 {[%emt 0:00:47]} Nc3 {[%emt 0:00:49]} 37. Nb4 {[%emt 0:00:35]} Qd1+ {[%emt 0:00:37]} 38. Kh2 {[%emt 0:00:23]} Nd5 {[%emt 0:00:42]} 39. Nxd5 {[%emt 0:01:02]} Qxd5 {[%emt 0:00:04]} 40. Qc2+ {[%emt 0:00:05]} Kg8 {[%emt 0:00:12]} 41. Nf5 {[%emt 0:00:29]} Qd7 {[%emt 0:00:32]} 42. b4 {[%emt 0:00:32]} Ng5 {[%emt 0:01:08]} 43. Qa2+ {[%emt 0:00:32]} Kh7 {[%emt 0:00:18]} 44. Ng3 {[%emt 0:00:56]} Qe6 {[%emt 0:01:03]} 45. Qc2+ {[%emt 0:00:16]} e4 {[%emt 0:01:02]} 46. h4 {[%emt 0:00:23]} Nf7 {[%emt 0:00:06]} 47. Qxe4+ {[%emt 0:00:16]} Qxe4 {[%emt 0:00:04]} 48. Nxe4 {[%emt 0:00:05]} Kg6 {[%emt 0:00:03]} 49. Kg3 {[%emt 0:00:30]} Kf5 {[%emt 0:00:05]} 50. Kf3 {[%emt 0:00:29]} Ne5+ {[%emt 0:00:05]} 51. Ke2 {[%emt 0:00:52]} Kxe4 {[%emt 0:00:04]} 52. f3+ {[%emt 0:00:07]} Kd5 {[%emt 0:00:02]} 53. g4 {[%emt 0:00:11]} Nc6 {[%emt 0:00:02]} 54. e4+ {[%emt 0:00:08]} Ke5 {[%emt 0:00:04]} 55. Ke3 {[%emt 0:00:06]} Nxb4 {[%emt 0:00:02]} 56. f4+ {[%emt 0:00:04]} Ke6 {[%emt 0:00:12]} 57. g5 {[%emt 0:02:27]} fxg5 {[%emt 0:00:05]} 58. fxg5 {[%emt 0:00:48]} hxg5 {[%emt 0:00:08]} 59. hxg5 {[%emt 0:00:05]} Ke5 {[%emt 0:00:03]} 60. g6 {[%emt 0:00:17]} Nc6 {[%emt 0:00:04]} 61. Kd3 {[%emt 0:00:10]} b4 {[%emt 0:00:04]} 62. Kc4 {[%emt 0:00:04]} Kxe4 {[%emt 0:00:04]} 0-1

[Event "African Online-ch Women 2021"]
[Site "Online"]
[Date "2021.02.01"]
[Round "2.9"]
[White "Farnela, Nuzela Zacarias Musi"]
[Black "Rodriguez Guevara, Celia M."]
[Result "0-1"]
[ECO "A00"]
[WhiteElo "1431"]
[BlackElo "1849"]
[Annotator "NA RC"]
[PlyCount "70"]
[EventDate "2021.02.01"]
[EventType "swiss"]
[EventCountry "NET"]
[SourceTitle "playchess.com"]
[Source "ChessBase"]
[SourceQuality "1"]
[TimeControl "1500+10"]

1. e4 {[%emt 0:00:06]} d5 {[%emt 0:00:09]} 2. Nc3 {[%emt 0:00:15]} dxe4 {[%emt 0:02:56]} 3. Nxe4 {[%emt 0:00:08]} Bf5 {[%emt 0:00:09]} 4. Nc3 {[%emt 0:00:10]} Nf6 {[%emt 0:00:16]} 5. Bc4 {[%emt 0:00:12]} e6 {[%emt 0:00:33]} 6. d3 {[%emt 0:00:23]} Bd6 {[%emt 0:02:01]} 7. h3 {[%emt 0:00:44]} c6 {[%emt 0:00:13]} 8. a3 {[%emt 0:00:16]} Nbd7 {[%emt 0:00:18]} 9. Nf3 {[%emt 0:00:15]} h6 {[%emt 0:00:13]} 10. Be3 {[%emt 0:00:23]} Qc7 {[%emt 0:00:07]} 11. Qd2 {[%emt 0:00:42]} Nb6 {[%emt 0:00:58]} 12. Bb3 {[%emt 0:00:44]} O-O-O {[%emt 0:00:39]} 13. Nd4 {[%emt 0:01:23]} Bg6 {[%emt 0:00:13]} 14. O-O-O {[%emt 0:00:14]} Rhe8 {[%emt 0:02:33]} 15. Nde2 {[%emt 0:02:10]} Kb8 {[%emt 0:00:49]} 16. Ng3 {[%emt 0:01:02]} Nbd5 {[%emt 0:01:29]} 17. Nxd5 {[%emt 0:00:21]} Nxd5 {[%emt 0:00:20]} 18. Bxd5 {[%emt 0:02:37]} cxd5 {[%emt 0:01:12]} 19. Rhe1 {[%emt 0:02:02]} Rc8 {[%emt 0:01:36]} 20. Ne2 {[%emt 0:00:50]} e5 {[%emt 0:00:29]} 21. f3 {[%emt 0:00:13]} d4 {[%emt 0:01:24]} 22. Bf2 {[%emt 0:00:15]} f6 {[%emt 0:00:43]} 23. Ng3 {[%emt 0:02:06]} f5 {[%emt 0:00:56]} 24. Re2 {[%emt 0:03:16]} Bh7 {[%emt 0:02:20]} 25. Rde1 {[%emt 0:00:07]} Qf7 {[%emt 0:00:06]} 26. Kb1 {[%emt 0:00:30]} Bg8 {[%emt 0:00:03]} 27. b3 {[%emt 0:00:33]} Bxa3 {[%emt 0:00:07]} 28. Qa5 {[%emt 0:00:26]} Qf8 {[%emt 0:00:18]} 29. Rxe5 {[%emt 0:01:10]} Rxe5 {[%emt 0:01:07]} 30. Qxe5+ {[%emt 0:01:44]} Bd6 {[%emt 0:00:19]} 31. Qxd4 {[%emt 0:00:09]} Rc5 {[%emt 0:01:07]} 32. Qa4 {[%emt 0:00:12]} b5 {[%emt 0:00:34]} 33. Qa6 {[%emt 0:00:54]} Rc7 {[%emt 0:00:40]} 34. Qxb5+ {[%emt 0:02:54]} Rb7 {[%emt 0:00:03]} 35. Re8+ {[%emt 0:00:46]} Kc7 {[%emt 0:00:59]} 0-1

[Event "African Online-ch Women 2021"]
[Site "Online"]
[Date "2021.02.01"]
[Round "2.10"]
[White "Du Plessis, Anika"]
[Black "Francis, Onkemetse"]
[Result "0-1"]
[ECO "C45"]
[WhiteElo "1541"]
[BlackElo "1798"]
[Annotator "NA"]
[PlyCount "124"]
[EventDate "2021.02.01"]
[EventType "swiss"]
[EventCountry "NET"]
[SourceTitle "playchess.com"]
[Source "ChessBase"]
[SourceQuality "1"]
[TimeControl "1500+10"]

1. e4 {[%emt 0:00:00]} e5 {[%emt 0:00:06]} 2. Nf3 {[%emt 0:00:05]} Nc6 {[%emt 0:00:03]} 3. d4 {[%emt 0:00:02]} exd4 {[%emt 0:00:04]} 4. Nxd4 {[%emt 0:00:02]} Nxd4 {[%emt 0:00:16]} 5. Qxd4 {[%emt 0:00:03]} Qf6 {[%emt 0:00:03]} 6. c3 {[%emt 0:00:36]} Qxd4 {[%emt 0:01:53]} 7. cxd4 {[%emt 0:00:05]} Nf6 {[%emt 0:00:09]} 8. Nc3 {[%emt 0:00:42]} Bb4 {[%emt 0:00:58]} 9. f3 {[%emt 0:00:34]} d6 {[%emt 0:02:06]} 10. Bc4 {[%emt 0:02:17]} h6 {[%emt 0:01:25]} 11. Be3 {[%emt 0:00:51]} O-O {[%emt 0:01:02]} 12. O-O {[%emt 0:00:46]} Bd7 {[%emt 0:00:52]} 13. a4 {[%emt 0:02:16]} Rfe8 {[%emt 0:02:58]} 14. Bf2 {[%emt 0:02:14]} c6 {[%emt 0:04:51]} 15. d5 {[%emt 0:01:43]} Bxc3 {[%emt 0:02:11]} 16. bxc3 {[%emt 0:00:06]} cxd5 {[%emt 0:00:30]} 17. exd5 {[%emt 0:00:11]} Rec8 {[%emt 0:00:16]} 18. Bb5 {[%emt 0:01:22]} Bxb5 {[%emt 0:01:32]} 19. axb5 {[%emt 0:00:05]} Nxd5 {[%emt 0:00:02]} 20. c4 {[%emt 0:03:24]} Rxc4 {[%emt 0:00:41]} 21. Rfd1 {[%emt 0:00:05]} Nc3 {[%emt 0:00:45]} 22. Rxd6 {[%emt 0:00:16]} Nxb5 {[%emt 0:00:42]} 23. Rd7 {[%emt 0:00:14]} Rc7 {[%emt 0:00:13]} 24. Rxc7 {[%emt 0:00:42]} Nxc7 {[%emt 0:00:05]} 25. Rxa7 {[%emt 0:00:01]} Rxa7 {[%emt 0:00:05]} 26. Bxa7 {[%emt 0:00:02]} b5 {[%emt 0:00:17]} 27. Bc5 {[%emt 0:00:13]} Nd5 {[%emt 0:01:23]} 28. Kf1 {[%emt 0:00:28]} g6 {[%emt 0:00:32]} 29. Ke1 {[%emt 0:00:12]} f5 {[%emt 0:00:12]} 30. Kd2 {[%emt 0:00:12]} Kf7 {[%emt 0:00:03]} 31. h4 {[%emt 0:00:26]} Ke6 {[%emt 0:00:27]} 32. Bd4 {[%emt 0:00:36]} Ne7 {[%emt 0:00:40]} 33. Kd3 {[%emt 0:00:47]} Kd5 {[%emt 0:00:04]} 34. g4 {[%emt 0:00:28]} Nc6 {[%emt 0:00:25]} 35. Bg7 {[%emt 0:00:17]} fxg4 {[%emt 0:01:11]} 36. fxg4 {[%emt 0:00:12]} Ne5+ {[%emt 0:00:03]} 37. Kc3 {[%emt 0:01:06]} Nxg4 {[%emt 0:00:04]} 38. Kb4 {[%emt 0:00:06]} Kc6 {[%emt 0:00:04]} 39. Bf8 {[%emt 0:00:03]} h5 {[%emt 0:00:32]} 40. Be7 {[%emt 0:00:10]} Ne5 {[%emt 0:00:18]} 41. Bf6 {[%emt 0:00:41]} Nd7 {[%emt 0:00:29]} 42. Be7 {[%emt 0:00:27]} Nb6 {[%emt 0:00:10]} 43. Bg5 {[%emt 0:00:52]} Nd5+ {[%emt 0:00:05]} 44. Kb3 {[%emt 0:00:05]} Kc5 {[%emt 0:00:18]} 45. Bh6 {[%emt 0:00:12]} Kc6 {[%emt 0:00:30]} 46. Bg5 {[%emt 0:00:44]} Nc7 {[%emt 0:00:07]} 47. Kb4 {[%emt 0:01:13]} Ne6 {[%emt 0:00:05]} 48. Be3 {[%emt 0:00:12]} Ng7 {[%emt 0:00:10]} 49. Bg5 {[%emt 0:00:22]} Nf5 {[%emt 0:00:03]} 50. Bf6 {[%emt 0:00:04]} Kd5 {[%emt 0:00:06]} 51. Kxb5 {[%emt 0:00:10]} Ke4 {[%emt 0:00:02]} 52. Kc4 {[%emt 0:00:22]} Kf4 {[%emt 0:00:03]} 53. Kd3 {[%emt 0:00:07]} Kg4 {[%emt 0:00:04]} 54. Ke2 {[%emt 0:00:08]} Nxh4 {[%emt 0:00:02]} 55. Kf2 {[%emt 0:00:05]} g5 {[%emt 0:00:04]} 56. Bd8 {[%emt 0:00:24]} Nf5 {[%emt 0:00:03]} 57. Kg2 {[%emt 0:00:03]} Kf4 {[%emt 0:00:07]} 58. Bc7+ {[%emt 0:00:03]} Ke4 {[%emt 0:00:07]} 59. Bd8 {[%emt 0:00:04]} g4 {[%emt 0:00:03]} 60. Bg5 {[%emt 0:00:05]} h4 {[%emt 0:00:04]} 61. Bxh4 {[%emt 0:00:09]} Nxh4+ {[%emt 0:00:05]} 62. Kg3 {[%emt 0:00:02]} Kf5 {[%emt 0:00:03]} 0-1

[Event "African Online-ch Women 2021"]
[Site "Online"]
[Date "2021.02.01"]
[Round "2.11"]
[White "Shaba, Linda Dalitso"]
[Black "Castro, Neusa Aridas De"]
[Result "1/2-1/2"]
[ECO "E06"]
[WhiteElo "1603"]
[BlackElo "1512"]
[Annotator "NA RC"]
[PlyCount "93"]
[EventDate "2021.02.01"]
[EventType "swiss"]
[EventCountry "NET"]
[SourceTitle "playchess.com"]
[Source "ChessBase"]
[SourceQuality "1"]
[TimeControl "1500+10"]

1. Nf3 {[%emt 0:00:00]} e6 {[%emt 0:00:08]} 2. d4 {[%emt 0:00:36]} d5 {[%emt 0:00:07]} 3. c4 {[%emt 0:00:05]} Nf6 {[%emt 0:00:07]} 4. g3 {[%emt 0:00:14]} Be7 {[%emt 0:00:08]} 5. Bg2 {[%emt 0:00:04]} O-O {[%emt 0:00:11]} 6. O-O {[%emt 0:00:12]} c5 {[%emt 0:00:08]} 7. cxd5 {[%emt 0:00:05]} Nxd5 {[%emt 0:00:27]} 8. e4 {[%emt 0:00:53]} Nb4 {[%emt 0:00:31]} 9. a3 {[%emt 0:01:02]} N4c6 {[%emt 0:00:47]} 10. d5 {[%emt 0:00:59]} exd5 {[%emt 0:00:44]} 11. exd5 {[%emt 0:00:07]} Na5 {[%emt 0:00:06]} 12. Nc3 {[%emt 0:00:38]} Nc4 {[%emt 0:00:15]} 13. Qd3 {[%emt 0:01:54]} Nd6 {[%emt 0:00:15]} 14. Be3 {[%emt 0:01:30]} b6 {[%emt 0:00:19]} 15. Rfe1 {[%emt 0:00:45]} Bb7 {[%emt 0:00:12]} 16. h4 {[%emt 0:01:42]} Nd7 {[%emt 0:01:28]} 17. Bg5 {[%emt 0:00:30]} Nf6 {[%emt 0:00:35]} 18. Rad1 {[%emt 0:02:19]} Re8 {[%emt 0:00:09]} 19. Ne5 {[%emt 0:00:05]} Qc7 {[%emt 0:09:10]} 20. Nb5 {[%emt 0:08:12]} Nxb5 {[%emt 0:02:38]} 21. Qxb5 {[%emt 0:00:07]} a6 {[%emt 0:01:25]} 22. Qb3 {[%emt 0:01:01]} Rad8 {[%emt 0:02:18]} 23. Bf4 {[%emt 0:04:06]} Bd6 {[%emt 0:00:13]} 24. Nd3 {[%emt 0:00:42]} Rxe1+ {[%emt 0:00:22]} 25. Rxe1 {[%emt 0:00:05]} c4 {[%emt 0:00:15]} 26. Bxd6 {[%emt 0:00:11]} Rxd6 {[%emt 0:00:08]} 27. Qc3 {[%emt 0:00:18]} h6 {[%emt 0:00:43]} 28. Nf4 {[%emt 0:00:16]} Bxd5 {[%emt 0:00:51]} 29. Nxd5 {[%emt 0:00:35]} Nxd5 {[%emt 0:00:05]} 30. Re8+ {[%emt 0:00:05]} Kh7 {[%emt 0:00:10]} 31. Qc2+ {[%emt 0:00:18]} g6 {[%emt 0:00:13]} 32. h5 {[%emt 0:00:19]} Ne7 {[%emt 0:00:14]} 33. hxg6+ {[%emt 0:00:19]} Nxg6 {[%emt 0:00:07]} 34. Qc3 {[%emt 0:00:05]} f6 {[%emt 0:00:12]} 35. Be4 {[%emt 0:00:07]} Qf7 {[%emt 0:00:15]} 36. Bxg6+ {[%emt 0:00:11]} Kxg6 {[%emt 0:00:11]} 37. Re3 {[%emt 0:00:16]} Kg7 {[%emt 0:00:09]} 38. Qb4 {[%emt 0:00:10]} Rd1+ {[%emt 0:00:10]} 39. Kg2 {[%emt 0:00:03]} Qd5+ {[%emt 0:00:16]} 40. Rf3 {[%emt 0:00:07]} b5 {[%emt 0:00:18]} 41. Qe7+ {[%emt 0:00:03]} Kg6 {[%emt 0:00:10]} 42. Qxf6+ {[%emt 0:00:10]} Kh7 {[%emt 0:00:06]} 43. Qe7+ {[%emt 0:00:12]} Kg6 {[%emt 0:00:06]} 44. Qf6+ {[%emt 0:00:04]} Kh7 {[%emt 0:00:03]} 45. Qe7+ {[%emt 0:00:12]} Kg8 {[%emt 0:00:13]} 46. Qf8+ {[%emt 0:00:14]} Kh7 {[%emt 0:00:07]} 47. Qe7+ {[%emt 0:00:03]} 1/2-1/2

[Event "African Online-ch Women 2021"]
[Site "Online"]
[Date "2021.02.01"]
[Round "2.12"]
[White "Ndirangu, Joyce Nyaruai"]
[Black "Jambo, Linda"]
[Result "1-0"]
[ECO "D02"]
[WhiteElo "1659"]
[BlackElo "1478"]
[Annotator "NA RC"]
[PlyCount "115"]
[EventDate "2021.02.01"]
[EventType "swiss"]
[EventCountry "NET"]
[SourceTitle "playchess.com"]
[Source "ChessBase"]
[SourceQuality "1"]
[TimeControl "1500+10"]

1. d4 {[%emt 0:00:00]} Nf6 {[%emt 0:00:18]} 2. Nf3 {[%emt 0:00:08]} d5 {[%emt 0:00:07]} 3. Bf4 {[%emt 0:00:04]} Bg4 {[%emt 0:00:09]} 4. e3 {[%emt 0:00:05]} e6 {[%emt 0:00:13]} 5. Nbd2 {[%emt 0:00:08]} Bd6 {[%emt 0:00:11]} 6. Bg5 {[%emt 0:00:40]} h6 {[%emt 0:00:17]} 7. Bh4 {[%emt 0:00:04]} g5 {[%emt 0:01:26]} 8. Bg3 {[%emt 0:00:06]} Bxg3 {[%emt 0:00:04]} 9. hxg3 {[%emt 0:00:03]} a6 {[%emt 0:01:03]} 10. Be2 {[%emt 0:00:22]} Bxf3 {[%emt 0:00:18]} 11. Nxf3 {[%emt 0:00:13]} Ne4 {[%emt 0:00:51]} 12. c3 {[%emt 0:00:48]} Qf6 {[%emt 0:01:16]} 13. Bd3 {[%emt 0:00:51]} Nc6 {[%emt 0:01:54]} 14. Qc2 {[%emt 0:00:35]} Nd6 {[%emt 0:00:31]} 15. g4 {[%emt 0:01:16]} O-O-O {[%emt 0:01:25]} 16. O-O-O {[%emt 0:00:18]} Na5 {[%emt 0:02:35]} 17. Rh5 {[%emt 0:02:18]} Nac4 {[%emt 0:02:08]} 18. b3 {[%emt 0:00:21]} Na3 {[%emt 0:00:27]} 19. Qb2 {[%emt 0:00:09]} Nab5 {[%emt 0:00:14]} 20. c4 {[%emt 0:02:36]} dxc4 {[%emt 0:00:40]} 21. bxc4 {[%emt 0:00:03]} Na7 {[%emt 0:00:41]} 22. c5 {[%emt 0:00:10]} Ne8 {[%emt 0:01:07]} 23. Be4 {[%emt 0:00:07]} c6 {[%emt 0:00:16]} 24. Qb6 {[%emt 0:01:54]} Nb5 {[%emt 0:00:25]} 25. Rd2 {[%emt 0:00:52]} Qe7 {[%emt 0:01:01]} 26. a4 {[%emt 0:00:06]} Nc3 {[%emt 0:01:09]} 27. Bxc6 {[%emt 0:04:26]} bxc6 {[%emt 0:00:27]} 28. Qxc6+ {[%emt 0:00:03]} Qc7 {[%emt 0:00:27]} 29. Qxa6+ {[%emt 0:00:17]} Qb7 {[%emt 0:00:11]} 30. Qxb7+ {[%emt 0:00:06]} Kxb7 {[%emt 0:00:04]} 31. Rb2+ {[%emt 0:00:04]} Ka7 {[%emt 0:01:31]} 32. Ne5 {[%emt 0:00:09]} Rc8 {[%emt 0:02:24]} 33. Nxf7 {[%emt 0:02:07]} Rh7 {[%emt 0:00:07]} 34. Nxg5 {[%emt 0:00:03]} Rb7 {[%emt 0:00:07]} 35. Rxb7+ {[%emt 0:00:08]} Kxb7 {[%emt 0:00:05]} 36. Rxh6 {[%emt 0:00:01]} Nxa4 {[%emt 0:00:04]} 37. Nxe6 {[%emt 0:00:05]} Ra8 {[%emt 0:00:41]} 38. Kc2 {[%emt 0:00:43]} Nc7 {[%emt 0:00:10]} 39. Rh7 {[%emt 0:00:04]} Rc8 {[%emt 0:00:31]} 40. d5 {[%emt 0:00:12]} Nxc5 {[%emt 0:00:27]} 41. Nxc5+ {[%emt 0:00:04]} Kb6 {[%emt 0:00:04]} 42. Nd7+ {[%emt 0:00:12]} Kb5 {[%emt 0:00:32]} 43. d6 {[%emt 0:00:07]} Nd5+ {[%emt 0:00:13]} 44. Kd3 {[%emt 0:00:03]} Nb4+ {[%emt 0:00:39]} 45. Ke4 {[%emt 0:00:13]} Rc4+ {[%emt 0:00:15]} 46. Kf5 {[%emt 0:00:08]} Rc6 {[%emt 0:00:12]} 47. Ke6 {[%emt 0:00:34]} Nd3 {[%emt 0:00:29]} 48. f4 {[%emt 0:00:08]} Nc5+ {[%emt 0:00:04]} 49. Nxc5 {[%emt 0:00:03]} Rxc5 {[%emt 0:00:02]} 50. d7 {[%emt 0:00:08]} Rc6+ {[%emt 0:00:06]} 51. Kf5 {[%emt 0:00:16]} Rc5+ {[%emt 0:00:04]} 52. Ke4 {[%emt 0:00:04]} Rc7 {[%emt 0:00:10]} 53. Rh5+ {[%emt 0:00:03]} Kc6 {[%emt 0:00:03]} 54. d8=Q {[%emt 0:00:03]} Kb6 {[%emt 0:00:04]} 55. Rh7 {[%emt 0:00:08]} Kc6 {[%emt 0:00:19]} 56. Rxc7+ {[%emt 0:00:04]} Kb5 {[%emt 0:00:06]} 57. Qb8+ {[%emt 0:00:08]} Ka5 {[%emt 0:00:06]} 58. Ra7# {[%emt 0:00:02]} 1-0

[Event "African Online-ch Women 2021"]
[Site "Online"]
[Date "2021.02.01"]
[Round "2.13"]
[White "Malehloa, Likhomo"]
[Black "Sitoe, Cheila Andre"]
[Result "1-0"]
[ECO "D00"]
[WhiteElo "1331"]
[BlackElo "1588"]
[Annotator "NA RC"]
[PlyCount "95"]
[EventDate "2021.02.01"]
[EventType "swiss"]
[EventCountry "NET"]
[SourceTitle "playchess.com"]
[Source "ChessBase"]
[SourceQuality "1"]
[TimeControl "1500+10"]

1. d4 {[%emt 0:00:00]} Nf6 {[%emt 0:00:14]} 2. Nc3 {[%emt 0:00:13]} d5 {[%emt 0:00:51]} 3. Bf4 {[%emt 0:00:21]} Bf5 {[%emt 0:01:07]} 4. Nb5 {[%emt 0:00:20]} Na6 {[%emt 0:00:38]} 5. e3 {[%emt 0:00:15]} c6 {[%emt 0:00:11]} 6. Nc3 {[%emt 0:00:09]} e6 {[%emt 0:00:04]} 7. Nf3 {[%emt 0:00:10]} Bd6 {[%emt 0:00:07]} 8. Ne5 {[%emt 0:00:27]} O-O {[%emt 0:00:10]} 9. Bd3 {[%emt 0:00:47]} Bg6 {[%emt 0:01:25]} 10. Bxg6 {[%emt 0:00:30]} fxg6 {[%emt 0:00:10]} 11. h3 {[%emt 0:02:01]} Qc7 {[%emt 0:00:06]} 12. O-O {[%emt 0:00:28]} Nh5 {[%emt 0:00:08]} 13. Bh2 {[%emt 0:00:09]} Nb8 {[%emt 0:00:58]} 14. Qg4 {[%emt 0:00:11]} Re8 {[%emt 0:00:32]} 15. Na4 {[%emt 0:00:57]} b6 {[%emt 0:00:29]} 16. Nf3 {[%emt 0:01:11]} Bxh2+ {[%emt 0:00:36]} 17. Nxh2 {[%emt 0:00:07]} e5 {[%emt 0:00:03]} 18. dxe5 {[%emt 0:00:14]} Qxe5 {[%emt 0:00:19]} 19. Nc3 {[%emt 0:00:09]} Nf6 {[%emt 0:00:41]} 20. Qd4 {[%emt 0:00:35]} Qf5 {[%emt 0:02:22]} 21. Qd3 {[%emt 0:00:33]} Qe6 {[%emt 0:00:11]} 22. Rad1 {[%emt 0:00:11]} Nbd7 {[%emt 0:00:07]} 23. Nf3 {[%emt 0:00:14]} Nc5 {[%emt 0:00:45]} 24. Qd2 {[%emt 0:00:41]} Re7 {[%emt 0:00:48]} 25. Nd4 {[%emt 0:00:11]} Qd7 {[%emt 0:00:16]} 26. Nce2 {[%emt 0:00:59]} Rf8 {[%emt 0:00:08]} 27. Qb4 {[%emt 0:01:02]} Ref7 {[%emt 0:00:27]} 28. c4 {[%emt 0:01:37]} Nfe4 {[%emt 0:01:35]} 29. f3 {[%emt 0:00:15]} Ng5 {[%emt 0:01:14]} 30. Nf4 {[%emt 0:00:55]} Nb7 {[%emt 0:03:18]} 31. Qc3 {[%emt 0:00:27]} Re8 {[%emt 0:04:48]} 32. cxd5 {[%emt 0:00:16]} cxd5 {[%emt 0:00:12]} 33. Rde1 {[%emt 0:00:52]} Nc5 {[%emt 0:00:35]} 34. b4 {[%emt 0:00:56]} Nce6 {[%emt 0:00:53]} 35. Nfxe6 {[%emt 0:00:14]} Nxe6 {[%emt 0:00:16]} 36. Nxe6 {[%emt 0:00:10]} Qxe6 {[%emt 0:00:11]} 37. Qd4 {[%emt 0:00:08]} Rfe7 {[%emt 0:00:10]} 38. Kf2 {[%emt 0:00:06]} Qc6 {[%emt 0:00:17]} 39. Re2 {[%emt 0:00:21]} Qb5 {[%emt 0:00:15]} 40. Rd1 {[%emt 0:00:21]} Re5 {[%emt 0:00:25]} 41. a3 {[%emt 0:00:44]} g5 {[%emt 0:00:08]} 42. Rd3 {[%emt 0:00:30]} h6 {[%emt 0:02:16]} 43. g3 {[%emt 0:00:19]} Kh8 {[%emt 0:00:05]} 44. f4 {[%emt 0:00:10]} gxf4 {[%emt 0:00:25]} 45. gxf4 {[%emt 0:00:06]} Rh5 {[%emt 0:00:04]} 46. e4 {[%emt 0:01:21]} dxe4 {[%emt 0:00:06]} 47. Rxe4 {[%emt 0:00:05]} Re7 {[%emt 0:00:14]} 48. Rxe7 {[%emt 0:00:06]} 1-0

[Event "African Online-ch Women 2021"]
[Site "Online"]
[Date "2021.02.01"]
[Round "2.14"]
[White "Ben Said, Safa"]
[Black "Namangale, Susan"]
[Result "1-0"]
[ECO "B00"]
[WhiteElo "1577"]
[BlackElo "1344"]
[Annotator "NA RC"]
[PlyCount "77"]
[EventDate "2021.02.01"]
[EventType "swiss"]
[EventCountry "NET"]
[SourceTitle "playchess.com"]
[Source "ChessBase"]
[SourceQuality "1"]
[TimeControl "1500+10"]

1. e4 {[%emt 0:00:00]} Nc6 {[%emt 0:00:07]} 2. d4 {[%emt 0:00:25]} d6 {[%emt 0:00:25]} 3. Nf3 {[%emt 0:00:46]} g6 {[%emt 0:00:14]} 4. Bb5 {[%emt 0:00:38]} Bd7 {[%emt 0:00:09]} 5. Be3 {[%emt 0:01:56]} a6 {[%emt 0:00:29]} 6. Ba4 {[%emt 0:00:11]} Bg7 {[%emt 0:00:20]} 7. c3 {[%emt 0:00:39]} b5 {[%emt 0:00:19]} 8. Bb3 {[%emt 0:00:08]} Nf6 {[%emt 0:00:05]} 9. Nbd2 {[%emt 0:01:47]} O-O {[%emt 0:00:20]} 10. O-O {[%emt 0:00:25]} Kh8 {[%emt 0:00:41]} 11. Ng5 {[%emt 0:00:25]} e6 {[%emt 0:00:57]} 12. f4 {[%emt 0:01:59]} Na5 {[%emt 0:00:42]} 13. Bc2 {[%emt 0:00:35]} Nc4 {[%emt 0:00:25]} 14. Nxc4 {[%emt 0:00:27]} bxc4 {[%emt 0:00:05]} 15. f5 {[%emt 0:00:17]} h6 {[%emt 0:00:17]} 16. fxe6 {[%emt 0:00:06]} fxe6 {[%emt 0:00:23]} 17. Nf3 {[%emt 0:00:15]} Bc6 {[%emt 0:00:44]} 18. Nd2 {[%emt 0:00:35]} Qe8 {[%emt 0:00:50]} 19. Qe2 {[%emt 0:00:28]} d5 {[%emt 0:00:21]} 20. e5 {[%emt 0:00:23]} Ne4 {[%emt 0:00:37]} 21. Nxe4 {[%emt 0:00:05]} dxe4 {[%emt 0:00:06]} 22. Qg4 {[%emt 0:00:04]} Kh7 {[%emt 0:00:18]} 23. Bxe4 {[%emt 0:00:17]} Bxe4 {[%emt 0:00:12]} 24. Qxe4 {[%emt 0:00:03]} Rb8 {[%emt 0:00:20]} 25. Qc2 {[%emt 0:00:12]} Qe7 {[%emt 0:01:14]} 26. b3 {[%emt 0:00:15]} cxb3 {[%emt 0:01:12]} 27. axb3 {[%emt 0:00:05]} Rb6 {[%emt 0:00:39]} 28. d5 {[%emt 0:00:07]} Rb5 {[%emt 0:00:35]} 29. c4 {[%emt 0:00:29]} Rb4 {[%emt 0:00:16]} 30. Rxa6 {[%emt 0:00:10]} Rxf1+ {[%emt 0:01:44]} 31. Kxf1 {[%emt 0:00:05]} Qf7+ {[%emt 0:00:16]} 32. Kg1 {[%emt 0:00:37]} exd5 {[%emt 0:00:36]} 33. cxd5 {[%emt 0:00:09]} Bxe5 {[%emt 0:00:13]} 34. Re6 {[%emt 0:00:28]} Rb5 {[%emt 0:01:03]} 35. Rxe5 {[%emt 0:00:43]} Rb7 {[%emt 0:02:09]} 36. Bc5 {[%emt 0:00:43]} Kg8 {[%emt 0:01:13]} 37. Re6 {[%emt 0:00:27]} Rb8 {[%emt 0:01:26]} 38. Rxg6+ {[%emt 0:00:35]} Kh8 {[%emt 0:01:27]} 39. Bd4+ {[%emt 0:00:08]} 1-0